[Event "Titled Tuesday Blitz February 01 B 2022"]
[White "Jones, Gawain C B"]
[Black "Ezat, Mohamed"]
[WhiteFideId "409561"]
[BlackFideId "10600906"]
[WhiteElo "2657"]
[BlackElo "2386"]
[Result "1/2-1/2"]
[Round "02"]
[TimeControl "180+1"]
[Date "2022.02.01"]
[WhiteClock "0:00:06"]
[BlackClock "0:00:08"]

1. Nf3 {[%clk 0:03:00]}  Nf6 {[%clk 0:02:59]} 2. g3 {[%clk 0:03:01]}  g6 {[%clk 0:03:00]} 3. b3 {[%clk 0:03:01]}  Bg7 {[%clk 0:03:00]} 4. Bb2 {[%clk 0:03:02]}  O-O {[%clk 0:03:01]} 5. Bg2 {[%clk 0:03:02]}  d6 {[%clk 0:03:01]} 6. d4 {[%clk 0:03:02]}  e5 {[%clk 0:03:00]} 7. dxe5 {[%clk 0:03:01]}  Ng4 {[%clk 0:03:00]} 8. O-O {[%clk 0:02:53]}  Nc6 {[%clk 0:02:59]} 9. c4 {[%clk 0:02:51]}  a5 {[%clk 0:02:59]} 10. Nc3 {[%clk 0:02:48]}  Ngxe5 {[%clk 0:02:59]} 11. Nxe5 {[%clk 0:02:49]}  Nxe5 {[%clk 0:02:59]} 12. h3 {[%clk 0:02:47]}  Bd7 {[%clk 0:02:50]} 13. Qc2 {[%clk 0:02:37]}  a4 {[%clk 0:02:47]} 14. Nxa4 {[%clk 0:02:34]}  Bxa4 {[%clk 0:02:41]} 15. bxa4 {[%clk 0:02:34]}  Ra7 {[%clk 0:02:25]} 16. c5 {[%clk 0:02:33]}  dxc5 {[%clk 0:02:15]} 17. Qxc5 {[%clk 0:02:33]}  b6 {[%clk 0:02:14]} 18. Qc2 {[%clk 0:02:33]}  Qe7 {[%clk 0:02:02]} 19. Rfd1 {[%clk 0:02:28]}  Qb4 {[%clk 0:01:49]} 20. Rac1 {[%clk 0:01:41]}  Qxa4 {[%clk 0:01:19]} 21. Qxa4 {[%clk 0:01:41]}  Rxa4 {[%clk 0:01:18]} 22. Bd5 {[%clk 0:01:40]}  Nf3+ {[%clk 0:00:39]} 23. exf3 {[%clk 0:01:27]}  Bxb2 {[%clk 0:00:39]} 24. Rxc7 {[%clk 0:01:27]}  Rd4 {[%clk 0:00:38]} 25. Rxd4 {[%clk 0:01:24]}  Bxd4 {[%clk 0:00:38]} 26. f4 {[%clk 0:01:24]}  Bc5 {[%clk 0:00:34]} 27. Kg2 {[%clk 0:01:22]}  Kg7 {[%clk 0:00:34]} 28. g4 {[%clk 0:01:21]}  h6 {[%clk 0:00:34]} 29. Kf3 {[%clk 0:01:21]}  Kf6 {[%clk 0:00:34]} 30. h4 {[%clk 0:01:19]}  g5 {[%clk 0:00:33]} 31. fxg5+ {[%clk 0:01:17]}  hxg5 {[%clk 0:00:34]} 32. h5 {[%clk 0:01:03]}  Kg7 {[%clk 0:00:33]} 33. Rc6 {[%clk 0:00:49]}  f5 {[%clk 0:00:29]} 34. Rg6+ {[%clk 0:00:39]}  Kh7 {[%clk 0:00:27]} 35. Kg3 {[%clk 0:00:22]}  fxg4 {[%clk 0:00:24]} 36. Rxg5 {[%clk 0:00:14]}  Kh6 {[%clk 0:00:10]} 37. Kxg4 {[%clk 0:00:12]}  Rxf2 {[%clk 0:00:07]} 38. Rg6+ {[%clk 0:00:11]}  Kh7 {[%clk 0:00:08]} 39. Re6 {[%clk 0:00:06]}  Rd2 {[%clk 0:00:07]} 40. Be4+ {[%clk 0:00:06]}  Kh8 {[%clk 0:00:07]} 41. h6 {[%clk 0:00:06]}  Rd8 {[%clk 0:00:07]} 42. Bg6 {[%clk 0:00:04]}  Rg8 {[%clk 0:00:07]} 43. Kf5 {[%clk 0:00:04]}  Rf8+ {[%clk 0:00:07]} 44. Kg4 {[%clk 0:00:05]}  Rg8 {[%clk 0:00:07]} 45. Kh5 {[%clk 0:00:05]}  Rd8 {[%clk 0:00:06]} 46. Bf7 {[%clk 0:00:05]}  Rd5+ {[%clk 0:00:05]} 47. Kg6 {[%clk 0:00:05]}  Rd6 {[%clk 0:00:06]} 48. Rxd6 {[%clk 0:00:03]}  Bxd6 {[%clk 0:00:06]} 49. Bd5 {[%clk 0:00:03]}  Bc5 {[%clk 0:00:07]} 50. Be4 {[%clk 0:00:04]}  Bg1 {[%clk 0:00:08]} 51. Kf7 {[%clk 0:00:05]}  Bc5 {[%clk 0:00:08]} 52. Ke6 {[%clk 0:00:05]}  Bg1 {[%clk 0:00:09]} 53. Kd5 {[%clk 0:00:05]}  Bf2 {[%clk 0:00:09]} 54. Kc4 {[%clk 0:00:05]}  Bg1 {[%clk 0:00:10]} 55. Kb5 {[%clk 0:00:06]}  Bf2 {[%clk 0:00:10]} 56. a4 {[%clk 0:00:05]}  Bg1 {[%clk 0:00:11]} 57. Kc6 {[%clk 0:00:06]}  Bf2 {[%clk 0:00:11]} 58. Kd6 {[%clk 0:00:06]}  Bg1 {[%clk 0:00:08]} 1/2-1/2


[Site "https://www.chess.com"]

[Event "Titled Tuesday Blitz February 01 B 2022"]
[White "Kobalia, Mikhail"]
[Black "Larino Nieto, David"]
[WhiteFideId "4119150"]
[BlackFideId "2256444"]
[WhiteElo "2667"]
[BlackElo "2532"]
[Result "1-0"]
[Round "02"]
[TimeControl "180+1"]
[Date "2022.02.01"]
[WhiteClock "0:00:51"]
[BlackClock "0:00:02"]

1. e4 {[%clk 0:03:00]}  c6 {[%clk 0:02:50]} 2. d4 {[%clk 0:02:59]}  g6 {[%clk 0:02:50]} 3. Nf3 {[%clk 0:02:58]}  d5 {[%clk 0:02:50]} 4. Nc3 {[%clk 0:02:57]}  Bg7 {[%clk 0:02:49]} 5. h3 {[%clk 0:02:58]}  dxe4 {[%clk 0:02:49]} 6. Nxe4 {[%clk 0:02:57]}  Nf6 {[%clk 0:02:50]} 7. Bd3 {[%clk 0:02:57]}  O-O {[%clk 0:02:50]} 8. O-O {[%clk 0:02:56]}  Nxe4 {[%clk 0:02:46]} 9. Bxe4 {[%clk 0:02:56]}  Nd7 {[%clk 0:02:47]} 10. Bg5 {[%clk 0:02:52]}  h6 {[%clk 0:02:39]} 11. Bf4 {[%clk 0:02:50]}  f5 {[%clk 0:02:32]} 12. Bd3 {[%clk 0:02:48]}  g5 {[%clk 0:02:32]} 13. Bc4+ {[%clk 0:02:43]}  Kh7 {[%clk 0:02:13]} 14. Nxg5+ {[%clk 0:02:38]}  hxg5 {[%clk 0:02:13]} 15. Qh5+ {[%clk 0:02:37]}  Bh6 {[%clk 0:02:14]} 16. Bxg5 {[%clk 0:02:37]}  Rf6 {[%clk 0:02:14]} 17. Bxf6 {[%clk 0:02:30]}  Nxf6 {[%clk 0:02:15]} 18. Qf7+ {[%clk 0:02:29]}  Bg7 {[%clk 0:02:03]} 19. Rfe1 {[%clk 0:02:27]}  e6 {[%clk 0:01:50]} 20. Bxe6 {[%clk 0:02:25]}  Qf8 {[%clk 0:01:31]} 21. Qxf8 {[%clk 0:02:16]}  Bxf8 {[%clk 0:01:32]} 22. Bxc8 {[%clk 0:02:13]}  Rxc8 {[%clk 0:01:33]} 23. Re6 {[%clk 0:02:11]}  Kg6 {[%clk 0:01:31]} 24. Rae1 {[%clk 0:02:08]}  Rd8 {[%clk 0:01:25]} 25. c3 {[%clk 0:02:08]}  c5 {[%clk 0:01:23]} 26. dxc5 {[%clk 0:01:54]}  Bxc5 {[%clk 0:01:24]} 27. b4 {[%clk 0:01:54]}  Bd6 {[%clk 0:01:15]} 28. Kf1 {[%clk 0:01:49]}  Kf7 {[%clk 0:01:12]} 29. R6e3 {[%clk 0:01:42]}  Ne4 {[%clk 0:01:08]} 30. Rd1 {[%clk 0:01:39]}  b5 {[%clk 0:00:39]} 31. g4 {[%clk 0:01:36]}  Be7 {[%clk 0:00:11]} 32. Rxd8 {[%clk 0:01:35]}  Bxd8 {[%clk 0:00:12]} 33. gxf5 {[%clk 0:01:35]}  Nd6 {[%clk 0:00:12]} 34. Re5 {[%clk 0:01:31]}  Bf6 {[%clk 0:00:11]} 35. Rc5 {[%clk 0:01:17]}  Ke7 {[%clk 0:00:08]} 36. Rc7+ {[%clk 0:01:12]}  Kd8 {[%clk 0:00:08]} 37. Rxa7 {[%clk 0:01:12]}  Bxc3 {[%clk 0:00:08]} 38. a3 {[%clk 0:01:06]}  Nxf5 {[%clk 0:00:07]} 39. Rb7 {[%clk 0:01:03]}  Nd6 {[%clk 0:00:07]} 40. Ra7 {[%clk 0:00:59]}  Bf6 {[%clk 0:00:06]} 41. Kg2 {[%clk 0:00:58]}  Bd4 {[%clk 0:00:02]} 42. Ra8+ {[%clk 0:00:55]}  Kd7 {[%clk 0:00:03]} 43. h4 {[%clk 0:00:54]}  Nf5 {[%clk 0:00:02]} 44. h5 {[%clk 0:00:53]}  Ke6 {[%clk 0:00:02]} 45. h6 {[%clk 0:00:51]} 1-0


[Site "https://www.chess.com"]

[Event "Titled Tuesday Blitz February 01 B 2022"]
[White "Kozusek, Daniel"]
[Black "Xiong, Jeffery"]
[WhiteFideId "349500"]
[BlackFideId "2047640"]
[WhiteElo "2206"]
[BlackElo "2727"]
[Result "1/2-1/2"]
[Round "02"]
[TimeControl "180+1"]
[Date "2022.02.01"]
[WhiteClock "0:00:49"]
[BlackClock "0:00:17"]

1. d4 {[%clk 0:03:00]}  d5 {[%clk 0:02:58]} 2. c4 {[%clk 0:02:58]}  dxc4 {[%clk 0:02:59]} 3. e3 {[%clk 0:02:57]}  Nf6 {[%clk 0:02:59]} 4. Bxc4 {[%clk 0:02:56]}  e6 {[%clk 0:03:00]} 5. Nf3 {[%clk 0:02:56]}  c5 {[%clk 0:03:01]} 6. dxc5 {[%clk 0:02:54]}  Qxd1+ {[%clk 0:03:00]} 7. Kxd1 {[%clk 0:02:54]}  Bxc5 {[%clk 0:03:00]} 8. Ke2 {[%clk 0:02:54]}  O-O {[%clk 0:03:00]} 9. a3 {[%clk 0:02:55]}  Be7 {[%clk 0:02:59]} 10. b4 {[%clk 0:02:54]}  b6 {[%clk 0:02:59]} 11. Bb2 {[%clk 0:02:53]}  Bb7 {[%clk 0:02:59]} 12. Nbd2 {[%clk 0:02:51]}  Nbd7 {[%clk 0:02:59]} 13. Rac1 {[%clk 0:02:51]}  Rfd8 {[%clk 0:02:58]} 14. Rhd1 {[%clk 0:02:51]}  Ne8 {[%clk 0:02:58]} 15. Bd3 {[%clk 0:02:30]}  f6 {[%clk 0:02:56]} 16. Be4 {[%clk 0:02:30]}  Bxe4 {[%clk 0:02:55]} 17. Nxe4 {[%clk 0:02:31]}  Kf7 {[%clk 0:02:53]} 18. Nd4 {[%clk 0:02:30]}  Nb8 {[%clk 0:02:48]} 19. Nb5 {[%clk 0:02:24]}  Rxd1 {[%clk 0:02:45]} 20. Rxd1 {[%clk 0:02:25]}  a6 {[%clk 0:02:42]} 21. Nbd6+ {[%clk 0:02:23]}  Nxd6 {[%clk 0:02:22]} 22. Nxd6+ {[%clk 0:02:24]}  Kf8 {[%clk 0:02:23]} 23. Nc8 {[%clk 0:02:07]}  Nd7 {[%clk 0:02:23]} 24. Nxe7 {[%clk 0:02:00]}  Kxe7 {[%clk 0:02:24]} 25. Rc1 {[%clk 0:01:59]}  Kd8 {[%clk 0:02:18]} 26. g4 {[%clk 0:01:55]}  Rc8 {[%clk 0:02:17]} 27. Rxc8+ {[%clk 0:01:55]}  Kxc8 {[%clk 0:02:18]} 28. g5 {[%clk 0:01:55]}  Kc7 {[%clk 0:02:09]} 29. gxf6 {[%clk 0:01:55]}  gxf6 {[%clk 0:02:10]} 30. f4 {[%clk 0:01:51]}  Kc6 {[%clk 0:02:09]} 31. Kd3 {[%clk 0:01:50]}  Kb5 {[%clk 0:02:03]} 32. e4 {[%clk 0:01:45]}  Ka4 {[%clk 0:02:04]} 33. f5 {[%clk 0:01:35]}  exf5 {[%clk 0:01:49]} 34. exf5 {[%clk 0:01:35]}  Kb3 {[%clk 0:01:50]} 35. Bc1 {[%clk 0:01:35]}  Ne5+ {[%clk 0:01:34]} 36. Ke4 {[%clk 0:01:30]}  Kc4 {[%clk 0:00:38]} 37. Bb2 {[%clk 0:01:30]}  Nd7 {[%clk 0:00:38]} 38. h4 {[%clk 0:01:08]}  h5 {[%clk 0:00:38]} 39. Ba1 {[%clk 0:01:06]}  a5 {[%clk 0:00:38]} 40. bxa5 {[%clk 0:01:03]}  bxa5 {[%clk 0:00:39]} 41. Bd4 {[%clk 0:01:00]}  a4 {[%clk 0:00:39]} 42. Ba1 {[%clk 0:00:57]}  Nc5+ {[%clk 0:00:39]} 43. Kf4 {[%clk 0:00:53]}  Nd7 {[%clk 0:00:40]} 44. Ke4 {[%clk 0:00:54]}  Nc5+ {[%clk 0:00:20]} 45. Kf4 {[%clk 0:00:49]}  Nd7 {[%clk 0:00:17]} 46. Ke4 {[%clk 0:00:49]} 1/2-1/2


[Site "https://www.chess.com"]

[Event "Titled Tuesday Blitz February 01 B 2022"]
[White "Lopez Mulet, Inigo"]
[Black "Timofeev, Artyom"]
[WhiteFideId "22235620"]
[BlackFideId "4140419"]
[WhiteElo "2315"]
[BlackElo "2583"]
[Result "0-1"]
[Round "02"]
[TimeControl "180+1"]
[Date "2022.02.01"]
[WhiteClock "0:00:19"]
[BlackClock "0:00:51"]

1. d4 {[%clk 0:03:00]}  d5 {[%clk 0:02:58]} 2. c4 {[%clk 0:03:00]}  e6 {[%clk 0:02:58]} 3. Nf3 {[%clk 0:02:57]}  c6 {[%clk 0:02:55]} 4. Nc3 {[%clk 0:02:56]}  dxc4 {[%clk 0:02:55]} 5. a4 {[%clk 0:02:54]}  Bb4 {[%clk 0:02:54]} 6. e3 {[%clk 0:02:49]}  b5 {[%clk 0:02:53]} 7. Ne5 {[%clk 0:02:46]}  Bb7 {[%clk 0:02:43]} 8. Qf3 {[%clk 0:02:15]}  Qe7 {[%clk 0:02:35]} 9. Qg3 {[%clk 0:02:14]}  g6 {[%clk 0:02:16]} 10. Bd2 {[%clk 0:02:10]}  Bxc3 {[%clk 0:02:15]} 11. bxc3 {[%clk 0:02:09]}  Nf6 {[%clk 0:02:14]} 12. f3 {[%clk 0:02:03]}  Nbd7 {[%clk 0:02:11]} 13. Be2 {[%clk 0:02:03]}  O-O {[%clk 0:02:00]} 14. e4 {[%clk 0:01:50]}  Nxe5 {[%clk 0:02:00]} 15. dxe5 {[%clk 0:01:49]}  Nd7 {[%clk 0:02:00]} 16. Be3 {[%clk 0:01:46]}  f6 {[%clk 0:01:53]} 17. exf6 {[%clk 0:01:42]}  Qxf6 {[%clk 0:01:53]} 18. Bd4 {[%clk 0:01:37]}  e5 {[%clk 0:01:45]} 19. Be3 {[%clk 0:01:36]}  Qe7 {[%clk 0:01:31]} 20. O-O {[%clk 0:01:35]}  Nc5 {[%clk 0:01:31]} 21. Rfd1 {[%clk 0:01:31]}  Nxa4 {[%clk 0:01:22]} 22. Bxc4+ {[%clk 0:01:19]}  Kh8 {[%clk 0:01:19]} 23. Rd7 {[%clk 0:00:41]}  Qxd7 {[%clk 0:01:19]} 24. Qxe5+ {[%clk 0:00:39]}  Qg7 {[%clk 0:01:12]} 25. Bd4 {[%clk 0:00:40]}  Rg8 {[%clk 0:01:10]} 26. Bxg8 {[%clk 0:00:37]}  Qxe5 {[%clk 0:01:09]} 27. Bxe5+ {[%clk 0:00:35]}  Kxg8 {[%clk 0:01:10]} 28. Kf2 {[%clk 0:00:34]}  Rd8 {[%clk 0:01:08]} 29. Ke3 {[%clk 0:00:33]}  c5 {[%clk 0:01:08]} 30. c4 {[%clk 0:00:32]}  a6 {[%clk 0:01:08]} 31. Rb1 {[%clk 0:00:31]}  Bc6 {[%clk 0:01:07]} 32. h4 {[%clk 0:00:31]}  bxc4 {[%clk 0:01:04]} 33. h5 {[%clk 0:00:30]}  gxh5 {[%clk 0:01:00]} 34. Kf4 {[%clk 0:00:30]}  c3 {[%clk 0:00:59]} 35. Kg5 {[%clk 0:00:29]}  Kf7 {[%clk 0:00:58]} 36. Kf5 {[%clk 0:00:27]}  c2 {[%clk 0:00:55]} 37. Rc1 {[%clk 0:00:27]}  Rd2 {[%clk 0:00:55]} 38. g3 {[%clk 0:00:26]}  Nb6 {[%clk 0:00:54]} 39. Bc3 {[%clk 0:00:24]}  Rg2 {[%clk 0:00:52]} 40. e5 {[%clk 0:00:19]}  Bd7+ {[%clk 0:00:52]} 41. Kf4 {[%clk 0:00:19]}  Nd5+ {[%clk 0:00:51]} 0-1


[Site "https://www.chess.com"]

[Event "Titled Tuesday Blitz February 01 B 2022"]
[White "Naroditsky, Daniel"]
[Black "Garriga Cazorla, Pere"]
[WhiteFideId "2026961"]
[BlackFideId "32011601"]
[WhiteElo "2608"]
[BlackElo "2458"]
[Result "1-0"]
[Round "02"]
[TimeControl "180+1"]
[Date "2022.02.01"]
[WhiteClock "0:00:16"]
[BlackClock "0:00:11"]

1. e4 {[%clk 0:03:00]}  c5 {[%clk 0:02:59]} 2. Nf3 {[%clk 0:03:00]}  d6 {[%clk 0:02:59]} 3. Bb5+ {[%clk 0:02:59]}  Nd7 {[%clk 0:02:59]} 4. O-O {[%clk 0:02:59]}  Nf6 {[%clk 0:03:00]} 5. Re1 {[%clk 0:02:59]}  a6 {[%clk 0:03:00]} 6. Bf1 {[%clk 0:02:58]}  b6 {[%clk 0:03:00]} 7. c4 {[%clk 0:02:54]}  Bb7 {[%clk 0:03:00]} 8. Nc3 {[%clk 0:02:55]}  e6 {[%clk 0:02:55]} 9. d4 {[%clk 0:02:55]}  cxd4 {[%clk 0:02:56]} 10. Nxd4 {[%clk 0:02:56]}  Be7 {[%clk 0:02:57]} 11. b3 {[%clk 0:02:53]}  Rc8 {[%clk 0:02:56]} 12. Bb2 {[%clk 0:02:53]}  O-O {[%clk 0:02:56]} 13. Qd2 {[%clk 0:02:52]}  Rc7 {[%clk 0:02:56]} 14. Rad1 {[%clk 0:02:51]}  Qa8 {[%clk 0:02:56]} 15. f3 {[%clk 0:02:52]}  Re8 {[%clk 0:02:55]} 16. Kh1 {[%clk 0:02:51]}  Bf8 {[%clk 0:02:55]} 17. Nc2 {[%clk 0:02:50]}  Rcc8 {[%clk 0:02:52]} 18. Ne3 {[%clk 0:02:50]}  Nc5 {[%clk 0:02:44]} 19. Qf2 {[%clk 0:02:45]}  Ncd7 {[%clk 0:02:41]} 20. Qg3 {[%clk 0:02:42]}  Nh5 {[%clk 0:02:39]} 21. Qh4 {[%clk 0:02:40]}  Nhf6 {[%clk 0:02:39]} 22. g4 {[%clk 0:02:32]}  Ne5 {[%clk 0:02:34]} 23. Bg2 {[%clk 0:02:32]}  Ng6 {[%clk 0:02:34]} 24. Qg3 {[%clk 0:02:32]}  h5 {[%clk 0:02:28]} 25. h3 {[%clk 0:02:09]}  h4 {[%clk 0:02:13]} 26. Qh2 {[%clk 0:02:08]}  Bc6 {[%clk 0:01:47]} 27. Ne2 {[%clk 0:02:07]}  b5 {[%clk 0:01:46]} 28. Nf4 {[%clk 0:01:54]}  Ne5 {[%clk 0:01:25]} 29. c5 {[%clk 0:01:49]}  Nxf3 {[%clk 0:01:19]} 30. Bxf3 {[%clk 0:01:50]}  Nxe4 {[%clk 0:01:19]} 31. Kg1 {[%clk 0:01:44]}  Nxc5 {[%clk 0:01:16]} 32. Bxc6 {[%clk 0:01:40]}  Qxc6 {[%clk 0:01:17]} 33. Qg2 {[%clk 0:01:35]}  Ne4 {[%clk 0:01:15]} 34. g5 {[%clk 0:01:26]}  d5 {[%clk 0:01:11]} 35. g6 {[%clk 0:01:26]}  Rc7 {[%clk 0:00:58]} 36. Qg4 {[%clk 0:01:16]}  Bc5 {[%clk 0:00:30]} 37. Qxh4 {[%clk 0:01:05]}  fxg6 {[%clk 0:00:30]} 38. Nxg6 {[%clk 0:01:06]}  e5 {[%clk 0:00:22]} 39. Qh8+ {[%clk 0:00:26]}  Kf7 {[%clk 0:00:22]} 40. Nxe5+ {[%clk 0:00:25]}  Rxe5 {[%clk 0:00:21]} 41. Bxe5 {[%clk 0:00:25]}  Qg6+ {[%clk 0:00:14]} 42. Kh2 {[%clk 0:00:19]}  Bd6 {[%clk 0:00:12]} 43. Rf1+ {[%clk 0:00:17]}  Ke6 {[%clk 0:00:12]} 44. Qg8+ {[%clk 0:00:16]}  Kxe5 {[%clk 0:00:11]} 45. Qxd5# {[%clk 0:00:16]} 1-0


[Site "https://www.chess.com"]

[Event "Titled Tuesday Blitz February 01 B 2022"]
[White "Niemann, Hans Moke"]
[Black "Beerdsen, Thomas"]
[WhiteFideId "2093596"]
[BlackFideId "1030108"]
[WhiteElo "2636"]
[BlackElo "2585"]
[Result "1-0"]
[Round "02"]
[TimeControl "180+1"]
[Date "2022.02.01"]
[WhiteClock "0:00:30"]
[BlackClock "0:00:01"]

1. d4 {[%clk 0:03:00]}  d5 {[%clk 0:02:58]} 2. Nc3 {[%clk 0:03:00]}  Nf6 {[%clk 0:02:58]} 3. Bf4 {[%clk 0:03:00]}  a6 {[%clk 0:02:57]} 4. e3 {[%clk 0:02:58]}  Bg4 {[%clk 0:02:57]} 5. f3 {[%clk 0:02:49]}  Bh5 {[%clk 0:02:55]} 6. g4 {[%clk 0:02:39]}  Bg6 {[%clk 0:02:55]} 7. h4 {[%clk 0:02:40]}  h6 {[%clk 0:02:46]} 8. Bd3 {[%clk 0:02:37]}  Bxd3 {[%clk 0:02:46]} 9. Qxd3 {[%clk 0:02:38]}  e6 {[%clk 0:02:45]} 10. Nge2 {[%clk 0:02:29]}  c5 {[%clk 0:02:45]} 11. O-O-O {[%clk 0:02:24]}  c4 {[%clk 0:02:44]} 12. Qd2 {[%clk 0:02:23]}  b5 {[%clk 0:02:45]} 13. Ng3 {[%clk 0:01:59]}  b4 {[%clk 0:02:35]} 14. Nce2 {[%clk 0:01:42]}  c3 {[%clk 0:02:18]} 15. Qd3 {[%clk 0:01:42]}  Qa5 {[%clk 0:02:00]} 16. Kb1 {[%clk 0:01:40]}  Nbd7 {[%clk 0:01:34]} 17. g5 {[%clk 0:01:40]}  Nb6 {[%clk 0:01:35]} 18. Bc7 {[%clk 0:01:20]}  Nfd7 {[%clk 0:01:28]} 19. g6 {[%clk 0:01:17]}  f6 {[%clk 0:01:17]} 20. Nf4 {[%clk 0:01:10]}  Qa4 {[%clk 0:00:21]} 21. Nxe6 {[%clk 0:01:01]}  Nc4 {[%clk 0:00:20]} 22. Qf5 {[%clk 0:01:01]}  Qc6 {[%clk 0:00:10]} 23. b3 {[%clk 0:00:52]}  Na3+ {[%clk 0:00:07]} 24. Kc1 {[%clk 0:00:52]}  Nb5 {[%clk 0:00:05]} 25. Ba5 {[%clk 0:00:34]}  Nd6 {[%clk 0:00:03]} 26. Qxd5 {[%clk 0:00:33]}  Qxd5 {[%clk 0:00:01]} 27. Nc7+ {[%clk 0:00:33]}  Kd8 {[%clk 0:00:01]} 28. Nxd5+ {[%clk 0:00:33]}  Kc8 {[%clk 0:00:02]} 29. Bxb4 {[%clk 0:00:32]}  a5 {[%clk 0:00:01]} 30. Bxc3 {[%clk 0:00:30]} 1-0


[Site "https://www.chess.com"]

[Event "Titled Tuesday Blitz February 01 B 2022"]
[White "Papasimakopoulos, Alexandros"]
[Black "Jobava, Baadur"]
[WhiteFideId "4244125"]
[BlackFideId "13601520"]
[WhiteElo "2340"]
[BlackElo "2617"]
[Result "0-1"]
[Round "02"]
[TimeControl "180+1"]
[Date "2022.02.01"]
[WhiteClock "0:00:37"]
[BlackClock "0:00:17"]

1. d4 {[%clk 0:03:00]}  d5 {[%clk 0:03:00]} 2. c4 {[%clk 0:03:01]}  dxc4 {[%clk 0:03:01]} 3. Nf3 {[%clk 0:03:01]}  Nf6 {[%clk 0:03:01]} 4. e3 {[%clk 0:03:02]}  Bg4 {[%clk 0:03:01]} 5. Bxc4 {[%clk 0:03:02]}  e6 {[%clk 0:03:01]} 6. O-O {[%clk 0:03:02]}  Bd6 {[%clk 0:03:01]} 7. Be2 {[%clk 0:03:02]}  O-O {[%clk 0:02:59]} 8. Nbd2 {[%clk 0:03:03]}  Nbd7 {[%clk 0:02:56]} 9. Nc4 {[%clk 0:03:03]}  Be7 {[%clk 0:02:54]} 10. b3 {[%clk 0:03:03]}  c5 {[%clk 0:02:54]} 11. Bb2 {[%clk 0:03:03]}  cxd4 {[%clk 0:02:54]} 12. Nxd4 {[%clk 0:03:00]}  Bxe2 {[%clk 0:02:55]} 13. Qxe2 {[%clk 0:03:01]}  Qb8 {[%clk 0:02:46]} 14. Rfd1 {[%clk 0:02:58]}  Rd8 {[%clk 0:02:46]} 15. Rac1 {[%clk 0:02:49]}  h6 {[%clk 0:02:43]} 16. h3 {[%clk 0:02:49]}  a6 {[%clk 0:02:42]} 17. Na5 {[%clk 0:02:47]}  Bb4 {[%clk 0:02:36]} 18. Nc4 {[%clk 0:02:35]}  Qa7 {[%clk 0:02:24]} 19. Nf3 {[%clk 0:02:31]}  Rac8 {[%clk 0:02:21]} 20. Nce5 {[%clk 0:02:31]}  Rxc1 {[%clk 0:02:17]} 21. Rxc1 {[%clk 0:02:32]}  Nxe5 {[%clk 0:02:16]} 22. Bxe5 {[%clk 0:02:30]}  Nd7 {[%clk 0:02:07]} 23. Bd4 {[%clk 0:02:30]}  Qb8 {[%clk 0:02:05]} 24. Qc4 {[%clk 0:02:28]}  Bd6 {[%clk 0:02:00]} 25. Bb2 {[%clk 0:02:19]}  Bf8 {[%clk 0:01:51]} 26. Qc7 {[%clk 0:02:14]}  Nc5 {[%clk 0:01:44]} 27. Qxb8 {[%clk 0:02:09]}  Rxb8 {[%clk 0:01:45]} 28. Bd4 {[%clk 0:02:09]}  Nd3 {[%clk 0:01:43]} 29. Rc7 {[%clk 0:02:06]}  Nb4 {[%clk 0:01:41]} 30. Ne5 {[%clk 0:02:00]}  Bd6 {[%clk 0:01:37]} 31. Rxf7 {[%clk 0:01:53]}  Bxe5 {[%clk 0:01:37]} 32. Bxe5 {[%clk 0:01:53]}  Kxf7 {[%clk 0:01:37]} 33. Bxb8 {[%clk 0:01:54]}  Nxa2 {[%clk 0:01:38]} 34. Bd6 {[%clk 0:01:50]}  a5 {[%clk 0:01:31]} 35. Ba3 {[%clk 0:01:50]}  Nc3 {[%clk 0:01:19]} 36. Kf1 {[%clk 0:01:47]}  b5 {[%clk 0:01:18]} 37. Bb2 {[%clk 0:01:43]}  Ne4 {[%clk 0:01:15]} 38. Ke2 {[%clk 0:01:41]}  Nc5 {[%clk 0:01:15]} 39. b4 {[%clk 0:01:37]}  axb4 {[%clk 0:01:16]} 40. f3 {[%clk 0:01:36]}  g6 {[%clk 0:01:14]} 41. e4 {[%clk 0:01:36]}  Ke7 {[%clk 0:01:09]} 42. Be5 {[%clk 0:01:32]}  Kd7 {[%clk 0:01:06]} 43. Kd2 {[%clk 0:01:31]}  h5 {[%clk 0:01:04]} 44. h4 {[%clk 0:01:29]}  Kc6 {[%clk 0:01:03]} 45. Bf6 {[%clk 0:01:25]}  Nd7 {[%clk 0:01:02]} 46. Bd4 {[%clk 0:01:22]}  Nc5 {[%clk 0:00:55]} 47. Bf6 {[%clk 0:01:18]}  Kb6 {[%clk 0:00:43]} 48. Be7 {[%clk 0:01:14]}  Nb3+ {[%clk 0:00:30]} 49. Kc2 {[%clk 0:01:11]}  Nd4+ {[%clk 0:00:30]} 50. Kd3 {[%clk 0:01:08]}  Nc6 {[%clk 0:00:30]} 51. Bd6 {[%clk 0:01:07]}  Ka5 {[%clk 0:00:30]} 52. g4 {[%clk 0:01:07]}  Ka4 {[%clk 0:00:28]} 53. gxh5 {[%clk 0:01:07]}  gxh5 {[%clk 0:00:29]} 54. f4 {[%clk 0:01:01]}  b3 {[%clk 0:00:30]} 55. f5 {[%clk 0:01:00]}  exf5 {[%clk 0:00:24]} 56. exf5 {[%clk 0:01:01]}  b4 {[%clk 0:00:20]} 57. f6 {[%clk 0:00:59]}  Nd8 {[%clk 0:00:18]} 58. Kd2 {[%clk 0:00:50]}  Ka3 {[%clk 0:00:18]} 59. Kc1 {[%clk 0:00:49]}  Ka2 {[%clk 0:00:18]} 60. Be5 {[%clk 0:00:48]}  Nf7 {[%clk 0:00:17]} 61. Bd4 {[%clk 0:00:49]}  Nd6 {[%clk 0:00:18]} 62. Be5 {[%clk 0:00:49]}  Nc4 {[%clk 0:00:17]} 63. f7 {[%clk 0:00:47]}  Nxe5 {[%clk 0:00:17]} 64. f8=Q {[%clk 0:00:47]}  b2+ {[%clk 0:00:17]} 65. Kd2 {[%clk 0:00:47]}  b1=Q {[%clk 0:00:17]} 66. Qa8+ {[%clk 0:00:43]}  Kb2 {[%clk 0:00:17]} 67. Qc8 {[%clk 0:00:37]}  Qd3+ {[%clk 0:00:16]} 68. Ke1 {[%clk 0:00:37]}  Qc3+ {[%clk 0:00:17]} 0-1


[Site "https://www.chess.com"]